bitfinex/quotes_BTCUSD_20220202
["timestamp","ask_amount","ask_price","bid_price","bid_amount"]
[1643782742706,0.0738621,38477.0,38474.0,0.06615687]
[1643782743106,0.0738621,38477.0,38474.0,0.064983]
[1643782743305,0.0738621,38477.0,38474.0,0.06615687]
[1643782744106,0.07354919,38477.0,38474.0,0.06615687]
[1643782744307,0.07354919,38477.0,38474.0,0.064983]
[1643782744509,0.07354919,38477.0,38474.0,0.06615687]
[1643782745109,0.07354919,38477.0,38474.0,0.00117387]
[1643782745307,0.05,38479.0,38475.0,0.06498245]
[1643782745507,0.114983,38482.0,38475.0,0.06498245]
[1643782745706,0.114983,38482.0,38474.0,0.20019174]
[1643782745707,0.00121713,38480.0,38476.0,0.1994857]
[1643782745955,0.00121713,38480.0,38476.0,0.12995591]
[1643782746359,0.08925393,38477.0,38476.0,0.12995591]
[1643782747956,0.35341664,38482.0,38476.0,0.33906969]
[1643782748257,0.00121715,38480.0,38476.0,0.33906969]
[1643782749060,0.09470336,38479.0,38476.0,0.33906969]
[1643782749258,0.09470336,38479.0,38477.0,0.20321167]
[1643782749458,0.09470336,38479.0,38477.0,0.26818902]
[1643782749710,0.00121717,38480.0,38478.0,0.350204]
[1643782750200,0.001,38483.0,38478.0,0.350204]
[1643782750404,0.001,38483.0,38478.0,0.41517836]
[1643782750600,0.00121716,38481.0,38478.0,0.41517836]
[1643782751204,0.07935743,38481.0,38478.0,0.41517836]
[1643782751403,0.07814027,38481.0,38478.0,0.41517836]
[1643782751603,0.07814027,38481.0,38478.0,0.06497436]
[1643782751802,0.07935742,38481.0,38478.0,0.06497436]
[1643782752705,0.07814027,38481.0,38478.0,0.06497436]
[1643782752907,0.07935742,38481.0,38478.0,0.06497436]
[1643782753105,0.07935742,38481.0,38479.0,0.350204]
[1643782753305,0.07935742,38481.0,38478.0,0.06497436]
[1643782753560,0.07935742,38481.0,38479.0,0.350204]
[1643782753758,0.07935742,38481.0,38478.0,0.06497436]
[1643782753958,0.07814027,38481.0,38478.0,0.06497436]
[1643782757215,0.07814027,38481.0,38479.0,0.55320129]
[1643782757407,0.07814027,38481.0,38479.0,0.350204]
[1643782757608,0.07814027,38481.0,38478.0,0.06497436]
[1643782757808,0.07814027,38481.0,38479.0,0.17821077]
[1643782758009,0.07814027,38481.0,38478.0,0.06497436]
[1643782758213,0.07814027,38481.0,38479.0,0.350204]
[1643782758409,0.001,38483.0,38479.0,0.350204]
[1643782758608,0.001,38483.0,38478.0,0.06497436]
[1643782759010,0.0023557,38483.0,38478.0,0.06497436]
[1643782759409,0.08373105,38479.0,38478.0,0.06497436]
[1643782759610,0.08373105,38479.0,38478.0,0.41517836]
[1643782761970,0.08373105,38479.0,38478.0,0.06497436]
[1643782763167,0.00120329,38480.0,38478.0,0.06497436]
[1643782763568,0.001,38483.0,38478.0,0.06497436]
[1643782763768,0.00120329,38481.0,38478.0,0.06497436]
[1643782764370,0.09138336,38481.0,38479.0,0.350204]
[1643782764806,0.09018007,38481.0,38478.0,0.06497436]
[1643782765008,0.09018007,38481.0,38479.0,0.20145533]
[1643782765208,0.09018007,38481.0,38478.0,0.06497436]
[1643782765407,0.09018007,38481.0,38479.0,0.350204]
[1643782765608,0.09018007,38481.0,38478.0,0.06497436]
[1643782766107,0.09140044,38481.0,38478.0,0.06497436]
[1643782766308,0.09140044,38481.0,38479.0,0.350204]
[1643782766507,0.09140044,38481.0,38478.0,0.06497436]
[1643782767107,0.09018007,38481.0,38478.0,0.06497436]
[1643782767307,0.09140044,38481.0,38478.0,0.06497436]
[1643782768309,0.09018007,38481.0,38478.0,0.06497436]
[1643782768558,0.09140044,38481.0,38478.0,0.06497436]
[1643782768756,0.24696384,38480.0,38478.0,0.06497436]
[1643782770459,0.24696384,38480.0,38476.0,0.1311297]
[1643782770660,0.24696384,38480.0,38477.0,0.350204]
[1643782770859,0.24818385,38480.0,38477.0,0.350204]
[1643782771062,0.24818385,38480.0,38477.0,0.35008408]
[1643782771659,0.05,38479.0,38477.0,0.35008408]
[1643782774711,0.24818237,38480.0,38477.0,0.35008408]
[1643782775315,0.24818237,38480.0,38477.0,0.41506175]
[1643782775513,0.24696384,38480.0,38477.0,0.41506175]
[1643782775712,0.24818236,38480.0,38477.0,0.41506175]
[1643782776158,0.24818236,38480.0,38478.0,0.2014061]
[1643782776456,0.24818236,38480.0,38479.0,0.350204]
[1643782776656,0.24696384,38480.0,38479.0,0.350204]
[1643782776856,0.09139874,38481.0,38479.0,0.350204]
[1643782777956,0.09018007,38481.0,38479.0,0.350204]
[1643782782211,0.09018007,38481.0,38479.0,0.55048228]
[1643782782510,0.09018007,38481.0,38479.0,0.55386002]
[1643782782710,0.09018007,38481.0,38480.0,0.1999181]
[1643782782910,0.09018007,38481.0,38478.0,0.06497493]
[1643782783112,0.09018007,38481.0,38479.0,0.349993]
[1643782784659,0.09018007,38481.0,38478.0,0.06497493]
[1643782785259,0.09139873,38481.0,38478.0,0.06497493]
[1643782786358,0.09018007,38481.0,38478.0,0.06497493]
[1643782786562,0.09139873,38481.0,38478.0,0.06497493]
[1643782787610,0.09018007,38481.0,38478.0,0.06497493]
[1643782787810,0.09139873,38481.0,38478.0,0.06497493]
[1643782788211,0.00121866,38481.0,38478.0,0.06497493]
[1643782788611,0.001,38483.0,38478.0,0.06497493]
[1643782789015,0.00121865,38481.0,38478.0,0.06497493]
[1643782789913,0.001,38483.0,38478.0,0.06497493]
[1643782790113,0.001,38483.0,38479.0,0.1299417]
[1643782790314,0.001,38483.0,38480.0,0.06497063]
[1643782790714,0.00121865,38481.0,38480.0,0.06497063]
[1643782790959,0.00121865,38481.0,38479.0,0.1299417]
[1643782791158,0.001,38483.0,38479.0,0.1299417]
[1643782791359,0.00121864,38482.0,38479.0,0.1299417]
[1643782792358,0.001,38483.0,38479.0,0.1299417]
[1643782792559,0.00121864,38482.0,38479.0,0.1299417]
[1643782793559,0.001,38483.0,38479.0,0.1299417]
[1643782793759,0.00121864,38482.0,38479.0,0.1299417]
[1643782794806,0.001,38483.0,38479.0,0.1299417]
[1643782795005,0.0010866,38482.0,38480.0,0.06497041]
[1643782796004,0.001,38483.0,38480.0,0.06497041]
[1643782796206,0.00209397,38483.0,38480.0,0.06497041]
[1643782797205,0.001,38483.0,38480.0,0.06497041]
[1643782797405,0.00209397,38483.0,38480.0,0.06497041]
[1643782798207,0.00209397,38483.0,38480.0,0.147339]
[1643782798455,0.00212367,38483.0,38480.0,0.147339]
[1643782798857,0.00212367,38483.0,38480.0,0.34711536]
[1643782799056,0.00212367,38483.0,38480.0,0.34704853]
[1643782799256,0.00212367,38483.0,38480.0,0.06490358]
[1643782799456,0.001,38483.0,38480.0,0.06490358]
[1643782799661,0.00212367,38483.0,38480.0,0.06490358]
[1643782799858,0.28575264,38483.0,38480.0,0.06490358]
[1643782800459,0.00212367,38483.0,38480.0,0.06490358]
[1643782800658,0.00212367,38483.0,38480.0,0.26724225]
[1643782800659,0.001,38483.0,38480.0,0.26724225]
[1643782800858,0.00212119,38483.0,38480.0,0.26724225]
[1643782801259,0.00212119,38483.0,38480.0,0.06490358]
[1643782801863,0.001,38483.0,38480.0,0.06490358]
[1643782802060,0.00212119,38483.0,38480.0,0.26956226]
[1643782802709,0.00212119,38483.0,38480.0,0.06490358]
[1643782802906,0.00212119,38483.0,38480.0,0.26421439]
[1643782803105,0.001,38483.0,38480.0,0.06490358]
[1643782803306,0.0021145,38483.0,38480.0,0.06490358]
[1643782803707,0.0021145,38483.0,38480.0,0.26849636]
[1643782804006,0.0021145,38483.0,38480.0,0.26486906]
[1643782804210,0.001,38483.0,38480.0,0.06490358]
[1643782804508,0.00211478,38483.0,38480.0,0.06490358]
[1643782804706,0.00211478,38483.0,38480.0,0.26740111]
[1643782805008,0.00211478,38483.0,38480.0,0.26741407]
[1643782805506,0.001,38483.0,38480.0,0.26703732]
[1643782805707,0.00211478,38483.0,38480.0,0.26703732]
[1643782805957,0.00211478,38483.0,38481.0,0.349993]
[1643782806359,0.00211478,38483.0,38480.0,0.06490358]
[1643782806760,0.001,38483.0,38481.0,0.349993]
[1643782806961,0.00211629,38483.0,38480.0,0.06490358]
[1643782807160,0.00211629,38483.0,38480.0,0.26873429]
[1643782807960,0.001,38483.0,38480.0,0.26873429]
[1643782808161,0.00211663,38483.0,38480.0,0.26873429]
[1643782808561,0.00211663,38483.0,38480.0,0.06490358]
[1643782809261,0.000301,38481.0,38480.0,0.2672112]
[1643782809715,0.000301,38481.0,38480.0,0.06490358]
[1643782811311,0.000301,38481.0,38480.0,0.41489658]
[1643782811510,0.000301,38481.0,38480.0,0.62514136]
[1643782813110,0.000301,38481.0,38480.0,0.41489658]
[1643782813765,0.000301,38481.0,38480.0,0.50350129]
[1643782814566,0.000301,38481.0,38480.0,0.41489658]
[1643782815967,0.000301,38481.0,38480.0,0.349993]
[1643782820414,0.000301,38481.0,38480.0,0.52101139]
[1643782820611,0.000301,38481.0,38480.0,0.349993]
[1643782822559,0.000301,38481.0,38480.0,0.61946499]
[1643782823261,0.000301,38481.0,38480.0,0.449993]
[1643782825010,0.000301,38481.0,38480.0,0.349993]
[1643782825209,0.000301,38481.0,38480.0,0.449993]
[1643782829563,0.000301,38481.0,38480.0,0.64031725]
[1643782837163,0.00022478,38481.0,38480.0,0.64031725]
[1643782849917,0.00022478,38481.0,38480.0,0.449993]
[1643782850519,0.00022478,38481.0,38480.0,0.65516278]
[1643782851366,0.00022478,38481.0,38480.0,0.449993]
[1643782851661,0.00022478,38481.0,38480.0,0.449301]
[1643782852063,0.00022478,38481.0,38480.0,0.44860369]
[1643782852864,0.00022478,38481.0,38480.0,0.64775015]
[1643782853469,0.14235016,38509.0,38486.0,0.04683754]
[1643782853669,0.14365309,38505.0,38498.0,0.05]
[1643782853870,0.15977325,38508.0,38499.0,0.23175708]
[1643782854068,0.16358174,38515.0,38501.0,0.19683754]
[1643782854069,0.15977325,38515.0,38501.0,0.19683754]
[1643782854265,0.16415838,38522.0,38501.0,0.19683754]
[1643782854266,0.15977325,38516.0,38502.0,0.499848]
[1643782854470,0.02231388,38518.0,38510.0,0.651]
[1643782854735,0.02231388,38518.0,38512.0,0.12979919]
[1643782854736,0.02073724,38518.0,38512.0,0.12979919]
[1643782854924,0.010394,38531.0,38521.0,0.07684315]
[1643782854925,0.34831141,38531.0,38521.0,0.07684315]
[1643782855123,0.010394,38531.0,38522.0,0.349848]
[1643782855323,0.005,38529.0,38523.0,0.1]
[1643782855522,0.005,38529.0,38524.0,0.401948]
[1643782855723,0.67969788,38522.0,38518.0,0.1]
[1643782855924,0.34043373,38527.0,38525.0,0.049]
[1643782856525,0.56107532,38527.0,38525.0,0.049]
[1643782856722,0.21814416,38526.0,38525.0,0.049]
[1643782857124,0.41489949,38526.0,38513.0,0.3726]
[1643782857323,0.31804749,38526.0,38513.0,0.3726]
[1643782858025,0.40593223,38514.0,38513.0,0.3726]
[1643782858225,0.40593223,38514.0,38513.0,0.349848]
[1643782858471,0.40593223,38514.0,38504.0,1.05679637]
[1643782858870,0.40593223,38514.0,38504.0,1.00679637]
[1643782859271,0.29797807,38508.0,38504.0,1.00679637]
[1643782859471,0.08402319,38506.0,38505.0,0.349848]
[1643782860472,0.08402319,38506.0,38504.0,1.00679637]
[1643782860672,0.08402319,38506.0,38505.0,0.349848]
[1643782860873,0.5068218,38508.0,38505.0,0.349848]
[1643782861074,0.00136215,38507.0,38504.0,1.00679637]
[1643782861972,0.09775113,38506.0,38504.0,1.00679637]
[1643782863408,0.00122701,38507.0,38504.0,1.00679637]
[1643782864009,0.00122701,38507.0,38505.0,0.58196152]
[1643782864215,0.00122701,38507.0,38506.0,0.3]
[1643782864410,0.07746604,38511.0,38506.0,0.91477601]
[1643782864709,0.001227,38508.0,38506.0,0.56492801]
[1643782864910,0.001227,38508.0,38507.0,0.98012292]
[1643782865610,0.27783741,38516.0,38507.0,1.08012292]
[1643782865810,0.00490719,38515.0,38509.0,0.06491503]
[1643782866060,0.00490719,38515.0,38510.0,0.349848]
[1643782866261,0.00490719,38515.0,38510.0,0.58138904]
[1643782866462,0.00490719,38515.0,38510.0,0.349848]
[1643782866661,0.10221146,38518.0,38510.0,0.58133346]
[1643782866866,0.00125732,38514.0,38512.0,0.06491248]
[1643782867063,0.00125732,38514.0,38513.0,0.349848]
[1643782867863,0.10221146,38518.0,38513.0,0.349848]
[1643782868062,0.10221146,38518.0,38512.0,0.06491248]
[1643782868262,0.10221146,38518.0,38512.0,0.19473427]
[1643782868263,0.00125731,38515.0,38512.0,0.19473427]
[1643782868462,0.00125731,38515.0,38513.0,0.349848]
[1643782868463,0.34158635,38515.0,38513.0,0.349848]
[1643782868663,0.34158635,38515.0,38512.0,0.12982179]
[1643782868863,0.34158635,38515.0,38513.0,0.349848]
[1643782869064,0.34032904,38515.0,38512.0,0.12982179]
[1643782869265,0.34032904,38515.0,38513.0,0.349848]
[1643782870111,0.34032904,38515.0,38512.0,0.12982179]
[1643782870308,0.34032904,38515.0,38513.0,0.349848]
[1643782870509,0.34157951,38515.0,38513.0,0.349848]
[1643782871509,0.34032904,38515.0,38513.0,0.349848]
[1643782871711,0.34032904,38515.0,38512.0,0.12982179]
[1643782871909,0.34032904,38515.0,38513.0,0.349848]
[1643782872214,0.00125046,38516.0,38513.0,0.58250229]
[1643782872410,0.00125046,38516.0,38514.0,0.29531204]
[1643782872609,0.00125046,38516.0,38514.0,0.06491204]
[1643782872810,0.10221146,38518.0,38514.0,0.06491204]
[1643782873011,0.00125045,38517.0,38514.0,0.06491204]
[1643782873310,0.30137333,38517.0,38512.0,0.12982179]
[1643782873963,0.30012288,38517.0,38512.0,0.12982179]
[1643782874164,0.001252,38516.0,38512.0,0.12982179]
[1643782874363,0.001252,38516.0,38513.0,0.349848]
[1643782875064,0.30012288,38517.0,38513.0,0.349848]
[1643782875366,7.23e-06,38522.0,38514.0,0.94803438]
[1643782875566,7.23e-06,38522.0,38519.0,0.04683754]
[1643782875766,0.0001869,38537.0,38521.0,0.6]
[1643782875966,0.0001869,38537.0,38528.0,0.651]
[1643782876169,0.001,38541.0,38530.0,0.6]
[1643782876366,0.08113393,38541.0,38536.0,0.0888195]
[1643782876567,0.07746465,38544.0,38537.0,0.401948]
[1643782876766,0.07746465,38544.0,38538.0,0.1]
[1643782876966,0.06867465,38544.0,38539.0,0.349848]
[1643782877213,0.06867465,38544.0,38540.0,0.0521]
[1643782877412,0.06867465,38544.0,38541.0,0.349848]
[1643782877610,0.09024703,38543.0,38541.0,0.34947]
[1643782877812,0.09024703,38543.0,38537.0,0.42]
[1643782877813,0.24803438,38542.0,38537.0,0.42]
[1643782878208,0.09024703,38543.0,38537.0,0.42]
[1643782878511,0.31774056,38543.0,38537.0,0.42]
[1643782878709,0.129751,38541.0,38537.0,0.42]
[1643782879310,0.0012585,38542.0,38537.0,0.42]
[1643782879709,0.26219992,38542.0,38537.0,0.42]
[1643782879908,0.15512203,38543.0,38537.0,0.42]
[1643782880111,0.0012585,38541.0,38537.0,0.42]
[1643782880310,0.0012585,38541.0,38538.0,0.34947]
[1643782881267,0.09024703,38543.0,38538.0,0.34947]
[1643782881464,0.00125506,38541.0,38539.0,0.25369825]
[1643782881667,0.06867465,38544.0,38540.0,0.94947]
[1643782881864,0.06867465,38544.0,38541.0,0.40486058]
[1643782882067,0.0070195,38547.0,38544.0,0.6]
[1643782882264,0.002,38547.0,38545.0,0.70223058]
[1643782882463,0.002,38547.0,38546.0,0.25276058]
[1643782882668,0.002,38547.0,38546.0,0.40157]
[1643782882866,0.001,38554.0,38546.0,0.0471]
[1643782882867,0.003,38549.0,38546.0,0.0471]
[1643782883465,0.003,38549.0,38542.0,1.46234403]
[1643782883666,0.003,38549.0,38539.0,0.0838019]
[1643782883667,0.2950915,38548.0,38539.0,0.0838019]
[1643782883866,0.064869,38546.0,38539.0,0.0838019]
[1643782884264,0.2950915,38548.0,38539.0,0.0838019]
[1643782884921,0.00137029,38545.0,38535.0,0.07106316]
[1643782885324,0.00137029,38545.0,38535.0,0.02106316]
[1643782885523,0.00137029,38545.0,38538.0,0.01861801]
[1643782885923,0.3450915,38548.0,38538.0,0.01861801]
[1643782886223,0.00137032,38543.0,38538.0,0.01861801]
[1643782886422,0.00137032,38543.0,38539.0,0.34947]
[1643782887125,0.003,38549.0,38539.0,0.34947]
[1643782887323,0.00137033,38543.0,38538.0,0.33564466]
[1643782887523,0.00137033,38543.0,38539.0,0.34947]
[1643782888327,0.00137033,38543.0,38538.0,0.01861801]
[1643782888328,0.12970627,38545.0,38538.0,0.01861801]
[1643782888566,0.2085588,38540.0,38538.0,0.01861801]
[1643782889366,0.33352983,38541.0,38538.0,0.03776542]
[1643782890267,0.00137029,38543.0,38538.0,0.03776542]
[1643782890570,0.28388468,38542.0,38538.0,0.03776542]
[1643782890967,0.28388468,38542.0,38541.0,7.058e-05]
[1643782892221,0.05136723,38543.0,38541.0,7.058e-05]
[1643782892416,0.00136723,38543.0,38541.0,7.058e-05]
[1643782893015,0.00136723,38543.0,38542.0,0.5]
[1643782893222,0.003,38549.0,38542.0,0.84947]
[1643782893415,0.003,38549.0,38542.0,0.94947]
[1643782893416,0.00136722,38544.0,38542.0,0.94947]
[1643782893615,0.00136722,38544.0,38542.0,0.84947]
[1643782893817,0.00136722,38544.0,38543.0,0.6804781]
[1643782894016,0.00136722,38544.0,38543.0,1.0299481]
[1643782894417,0.003,38549.0,38543.0,1.0948017]
[1643782894617,0.00136719,38545.0,38544.0,0.34947]
[1643782895017,0.00136719,38545.0,38544.0,0.74947]
[1643782895218,0.00136719,38545.0,38544.0,0.34947]
[1643782895618,0.003,38549.0,38544.0,0.34947]
[1643782895971,0.00137027,38546.0,38543.0,0.1453317]
[1643782896170,0.00137027,38546.0,38544.0,0.34947]
[1643782896769,0.003,38549.0,38543.0,0.0804781]
[1643782896969,0.003,38549.0,38542.0,0.1]
[1643782896970,0.00137026,38547.0,38542.0,0.1]
[1643782897371,0.00137026,38547.0,38541.0,0.10007058]
[1643782897871,0.00137026,38547.0,38541.0,7.058e-05]
[1643782898070,0.003,38549.0,38542.0,0.0795503]
[1643782898272,0.00137028,38546.0,38542.0,0.0795503]
[1643782898773,0.00137028,38546.0,38541.0,7.058e-05]
[1643782898974,0.00137028,38546.0,38541.0,0.02083872]
[1643782899176,0.20062523,38547.0,38541.0,7.058e-05]
[1643782899374,0.00137029,38545.0,38541.0,7.058e-05]
[1643782899813,0.00137029,38545.0,38542.0,0.34947]
[1643782900013,0.00137029,38545.0,38541.0,7.058e-05]
[1643782900410,0.47744841,38547.0,38538.0,0.2208707]
[1643782900610,0.0013703,38545.0,38538.0,0.2208707]
[1643782901320,0.27939164,38545.0,38538.0,0.2208707]
[1643782901512,0.27939164,38545.0,38538.0,0.1000707]
[1643782901513,0.27802134,38545.0,38538.0,0.1000707]
[1643782901712,0.00137032,38543.0,38538.0,0.1000707]
[1643782902512,0.00137032,38543.0,38539.0,0.34947]
[1643782902715,0.27802134,38545.0,38538.0,0.33945766]
[1643782902914,0.00137033,38543.0,38540.0,0.08535686]
[1643782903114,0.00137033,38543.0,38541.0,0.34935163]
[1643782903965,0.25886512,38548.0,38541.0,0.34935163]
[1643782904162,0.00137031,38544.0,38540.0,0.08535686]
[1643782904364,0.00137031,38544.0,38541.0,0.349457]
[1643782904962,0.00137031,38544.0,38540.0,0.08535686]
[1643782905163,0.32667053,38543.0,38539.0,0.1]
[1643782905363,0.32667053,38543.0,38540.0,0.349457]
[1643782905563,0.32667053,38543.0,38539.0,0.12106642]
[1643782905763,0.32667053,38543.0,38539.0,0.02106642]
[1643782906665,0.32804086,38543.0,38539.0,0.02106642]
[1643782906864,0.26203668,38542.0,38539.0,0.02106642]
[1643782907064,0.32804086,38543.0,38539.0,0.02106642]
[1643782907519,0.32667053,38543.0,38539.0,0.02106642]
[1643782907916,0.32667053,38543.0,38538.0,7.07e-05]
[1643782907917,0.32804086,38543.0,38538.0,7.07e-05]
[1643782908118,0.23487476,38542.0,38538.0,7.07e-05]
[1643782908717,0.32688758,38542.0,38538.0,7.07e-05]
[1643782909516,0.32688758,38542.0,38538.0,0.5000707]
[1643782910320,0.32688758,38542.0,38541.0,7.058e-05]
[1643782910520,0.55980842,38542.0,38541.0,7.058e-05]
[1643782910719,0.09201282,38542.0,38541.0,7.058e-05]
[1643782911166,0.32460762,38542.0,38541.0,7.058e-05]
[1643782911770,0.53472473,38542.0,38541.0,7.058e-05]
[1643782911967,0.09201282,38542.0,38541.0,7.058e-05]
[1643782912371,0.32279289,38542.0,38541.0,7.058e-05]
[1643782912569,0.32057012,38542.0,38541.0,7.058e-05]
[1643782913270,0.09201282,38542.0,38541.0,7.058e-05]
[1643782913471,0.32806299,38542.0,38541.0,7.058e-05]
[1643782913672,0.09201282,38542.0,38541.0,7.058e-05]
[1643782914071,0.32695723,38542.0,38541.0,7.058e-05]
[1643782914725,0.09201282,38542.0,38541.0,7.058e-05]
[1643782915716,0.32948586,38542.0,38541.0,7.058e-05]
[1643782916116,0.56322152,38542.0,38541.0,7.058e-05]
[1643782916520,0.32948586,38542.0,38541.0,7.058e-05]
[1643782917218,0.55938176,38542.0,38541.0,7.058e-05]
[1643782917418,0.55853711,38542.0,38541.0,7.058e-05]
[1643782917618,0.32948586,38542.0,38541.0,7.058e-05]
[1643782919075,0.32948586,38542.0,38536.0,0.01883073]
[1643782919682,0.32948586,38542.0,38536.0,0.0397383]
[1643782919683,0.25216502,38541.0,38536.0,0.0397383]
[1643782919878,0.1,38539.0,38531.0,0.42]
[1643782920077,0.03966066,38537.0,38532.0,0.5]
[1643782920277,0.35426502,38536.0,38529.0,0.00123808]
[1643782920477,0.064902,38534.0,38529.0,0.00123808]
[1643782920678,1.12110989,38533.0,38529.0,0.00123808]
[1643782920877,0.35455055,38527.0,38524.0,0.1211]
[1643782921076,0.35455055,38527.0,38522.0,0.42]
[1643782921078,0.35455055,38527.0,38526.0,0.5]
[1643782921277,0.45829188,38527.0,38522.0,0.42]
[1643782921678,0.72125996,38527.0,38522.0,0.42]
[1643782922323,0.28234326,38524.0,38523.0,0.00123828]
[1643782922921,0.51255086,38524.0,38523.0,0.00123828]
[1643782923120,0.51255086,38524.0,38522.0,0.42]
[1643782923121,0.28234326,38524.0,38522.0,0.42]
[1643782923421,0.28234326,38524.0,38522.0,0.00123832]
[1643782924425,0.28234326,38524.0,38519.0,0.0390184]
[1643782924725,0.05,38523.0,38521.0,0.00123833]
[1643782924927,0.22307734,38522.0,38521.0,0.00123833]
[1643782925423,0.05,38523.0,38521.0,0.00123833]
[1643782925624,0.05,38523.0,38519.0,0.0390184]
[1643782925966,0.33444326,38524.0,38520.0,0.00123838]
[1643782926766,0.33444326,38524.0,38510.0,0.32639135]
[1643782926767,0.53733936,38521.0,38510.0,0.32639135]
[1643782926966,0.03714,38518.0,38505.0,0.32639135]
[1643782927164,0.1021,38517.0,38508.0,0.01914854]
[1643782927364,0.1021,38517.0,38504.0,0.32639135]
[1643782927365,0.349457,38516.0,38504.0,0.32639135]
[1643782927568,0.22193008,38514.0,38504.0,0.32639135]
[1643782927764,0.41728272,38513.0,38506.0,0.0997335]
[1643782928164,0.41728272,38513.0,38508.0,0.00123877]
[1643782929166,0.63983763,38513.0,38503.0,0.1]
[1643782929367,0.63983763,38513.0,38509.0,0.00123873]
[1643782930420,0.63983763,38513.0,38503.0,0.1]
[1643782930619,0.064937,38512.0,38509.0,0.00123872]
[1643782930819,0.22179368,38511.0,38509.0,0.00123872]
[1643782931421,0.064937,38512.0,38509.0,0.00123872]
[1643782931619,0.064937,38512.0,38499.0,0.67275076]
[1643782931820,0.22320197,38511.0,38508.0,0.00123875]
[1643782932619,0.064937,38512.0,38508.0,0.00123875]
[1643782932823,0.29483467,38509.0,38499.0,0.1175]
[1643782933022,0.28896707,38511.0,38508.0,0.00123877]
[1643782933221,0.06494,38511.0,38508.0,0.00123877]
[1643782933866,0.35903201,38511.0,38508.0,0.00123877]
[1643782934067,0.5814762,38511.0,38499.0,0.20148833]
[1643782934269,0.21799296,38508.0,38499.0,0.20148833]
[1643782934667,0.21799296,38508.0,38500.0,0.25227335]
[1643782935267,0.40903201,38511.0,38500.0,0.25227335]
[1643782935470,0.35903201,38511.0,38502.0,0.00123894]
[1643782936267,0.24190567,38509.0,38502.0,0.00123894]
[1643782936467,0.35903201,38511.0,38500.0,0.35227335]
[1643782936768,0.35903201,38511.0,38505.0,0.00123886]
[1643782937068,0.29409201,38511.0,38505.0,0.00123886]
[1643782937515,0.064937,38512.0,38500.0,0.35227335]
[1643782937714,0.064937,38512.0,38508.0,0.07868593]
[1643782938614,0.63055516,38512.0,38508.0,0.07868593]
[1643782939014,0.63055516,38512.0,38508.0,0.07992468]
[1643782939216,0.60120148,38511.0,38508.0,0.00123875]
[1643782939417,0.65330148,38511.0,38508.0,0.00123875]
[1643782940015,0.65330148,38511.0,38498.0,0.3997]
[1643782940217,0.65330148,38511.0,38508.0,0.00123877]
[1643782940218,0.179894,38509.0,38508.0,0.00123877]
[1643782940417,1.30983045,38509.0,38508.0,0.00123877]
[1643782940618,1.35983045,38509.0,38508.0,0.00123877]
[1643782941165,0.064946,38507.0,38498.0,0.3997]
[1643782941369,0.25454316,38506.0,38498.0,0.3997]
[1643782941768,0.32358374,38506.0,38498.0,0.3997]
[1643782941968,0.064948,38506.0,38498.0,0.3997]
[1643782942167,0.114948,38506.0,38498.0,0.3997]
[1643782942367,0.20650135,38505.0,38498.0,0.3997]
[1643782942572,0.114948,38506.0,38500.0,0.00123901]
[1643782942767,0.05,38506.0,38500.0,0.00123901]
[1643782943167,0.05,38508.0,38500.0,0.00123901]
[1643782943368,0.0521,38508.0,38500.0,0.00123901]
[1643782943671,0.24971075,38507.0,38498.0,0.3997]
[1643782943869,0.29971075,38507.0,38502.0,0.00123894]
[1643782944270,0.29634075,38507.0,38502.0,0.00123894]
[1643782944471,0.35372812,38503.0,38502.0,0.00123894]
[1643782944722,0.35372812,38503.0,38498.0,0.3997]
[1643782944917,0.35372812,38503.0,38501.0,0.00123899]
[1643782945317,0.42623475,38507.0,38501.0,0.00123899]
[1643782945717,0.111576,38507.0,38501.0,0.00123899]
[1643782945918,0.04663,38507.0,38503.0,0.07779813]
[1643782946119,0.064944,38509.0,38503.0,0.07779813]
[1643782946518,0.43400176,38509.0,38503.0,0.07779813]
[1643782946717,0.70724871,38509.0,38503.0,0.07779813]
[1643782946919,0.06494,38512.0,38504.0,0.236463]
[1643782947123,0.02072075,38515.0,38504.0,0.236463]
[1643782947320,0.02072075,38515.0,38503.0,0.12989813]
[1643782947321,0.02072075,38515.0,38506.0,0.00123881]
[1643782947519,0.02163982,38518.0,38506.0,0.00123881]
[1643782947920,0.24446827,38517.0,38506.0,0.00123881]
[1643782948122,0.25174448,38516.0,38506.0,0.00123881]
[1643782948467,0.30174448,38516.0,38504.0,0.1163]
[1643782948666,0.23708226,38513.0,38509.0,0.00062085]
[1643782949668,0.23708226,38513.0,38507.0,0.08966371]
[1643782949870,0.23708226,38513.0,38509.0,0.00123872]
[1643782950269,0.38275394,38512.0,38509.0,0.00123872]
[1643782950474,0.28708226,38513.0,38509.0,0.00123872]
[1643782950770,0.28708226,38513.0,38504.0,0.1163]
[1643782950969,0.28708226,38513.0,38509.0,0.00123872]
[1643782951972,0.28708226,38513.0,38507.0,0.09138265]
[1643782952220,0.28676971,38513.0,38509.0,0.00123872]
[1643782952915,0.28708226,38513.0,38509.0,0.00123872]
[1643782953117,0.28708226,38513.0,38507.0,0.09138265]
[1643782953317,0.28708226,38513.0,38509.0,0.00123872]
[1643782953718,0.23708226,38513.0,38509.0,0.00123872]
[1643782954318,0.23708226,38513.0,38507.0,0.09138265]
[1643782954519,0.23708226,38513.0,38509.0,0.00123872]
[1643782955522,0.23708226,38513.0,38507.0,0.09138265]
[1643782955722,0.23708226,38513.0,38509.0,0.00123872]
[1643782955963,0.28708226,38513.0,38509.0,0.00123872]
[1643782956162,0.33249675,38510.0,38509.0,0.00123872]
[1643782956765,0.064932,38522.0,38500.0,0.25734232]
[1643782956964,0.35964211,38527.0,38508.0,0.00123877]
[1643782956965,0.3246,38527.0,38508.0,0.00123877]
[1643782957165,0.064927,38519.0,38508.0,0.00123877]
[1643782957363,0.097421,38518.0,38508.0,0.00123877]
[1643782957562,0.064927,38519.0,38508.0,0.00123877]
[1643782957762,0.22623216,38518.0,38508.0,0.00123877]
[1643782957962,0.22623216,38518.0,38513.0,0.1004143]
[1643782958164,0.349457,38517.0,38513.0,0.1004143]
[1643782958965,0.334457,38517.0,38513.0,0.1004143]
[1643782959366,0.334457,38517.0,38513.0,0.00062078]
[1643782960015,0.23472385,38515.0,38513.0,0.00062078]
[1643782960416,0.28472385,38515.0,38505.0,0.23980009]
[1643782960616,0.35248446,38514.0,38512.0,0.00123862]
[1643782961715,0.35248446,38514.0,38510.0,0.10280814]
[1643782962020,0.35248446,38514.0,38511.0,0.00123865]
[1643782962817,0.35248446,38514.0,38510.0,0.10280814]
[1643782963017,0.35248446,38514.0,38511.0,0.00123867]
[1643782963966,0.35248446,38514.0,38510.0,0.10280814]
[1643782964167,0.35248446,38514.0,38511.0,0.00123867]
[1643782965070,0.43868942,38513.0,38511.0,0.00123867]